Cogmind - Beta 17.1 @@@ ROGUE MODE // 2026.09.18 @ 17:01:09 Player: 7H-NLC Result: Destroyed by 9A-8DU(R) with Subdweller Laser Performance ------------- Evolutions (0) 0 Regions Visited (2) 400 Robots Destroyed (33) 165 Value Destroyed (793) 793 Prototype IDs (14) 280 Alien Tech Used (0) 0 Bonus (0) 0 TOTAL SCORE: 1638 Bonus ------- None Cogmind --------- Core Integrity 0/250 Matter 200/300 Energy 100/100 System Corruption 0% Temperature Cool (6) Movement Rolling (95) Ox1 Location -10/Subcaves Parts ------- > --- POWER (1) -------- Subdweller Power Source > --- PROPULSION (2) --- Wheel Wheel > --- UTILITY (2) ------ Large Storage Unit Makeshift Light Armor Plating > --- WEAPON (2) ------- Battle Rifle Subdweller Shrapnel Launcher > --- INVENTORY (15) --- Light Ion Engine Large Storage Unit Improved Terrain Scanner Seismic Detector Utility Shielding Makeshift Kinetic Plating Makeshift Thermal Plating Power Bank Subdweller Beam Cannon Autogun Subdweller Shrapnel Launcher Datajack Hammer Hammer Peak State ------------ > --- POWER ------------ Subdweller Power Source > --- PROPULSION ------- Wheel Wheel > --- UTILITY ---------- Large Storage Unit Makeshift Light Armor Plating > --- WEAPON ----------- Autogun Battle Rifle > --- INVENTORY -------- Light Ion Engine Large Storage Unit Improved Terrain Scanner Seismic Detector Utility Shielding Makeshift Kinetic Plating Power Bank Subdweller Beam Cannon Subdweller Shrapnel Launcher Subdweller Shrapnel Launcher Datajack Hammer Hammer Shrapnel Trap [Rating: 16] Favorites ----------- Power Subdweller Power Source Engine Subdweller Power Source Propulsion Light Treads Treads Light Treads Wheel Wheel Utility Large Storage Unit Device Seismic Detector Storage Large Storage Unit Protection Makeshift Light Armor Plating Weapon Autogun Ballistic Gun Autogun Launcher Subdweller Shrapnel Launcher Impact Weapon Hammer Build | -11 -10 -10 ------- Run | Yrd Mat Sub Slots Evolved . | . . . Power . | . . . Propulsion . | . . . Utility . | . . . Weapon . | . . . Parts Attached 26 | 8 6 12 Power 4 | 1 2 1 Engine 4 | 1 2 1 Core . | . . . Reactor . | . . . Propulsion 6 | 3 1 2 Treads 3 | 1 1 1 Leg . | . . . Wheel 3 | 2 . 1 Hover . | . . . Flight . | . . . Utility 6 | 2 1 3 Device 3 | 1 . 2 Storage 2 | 1 1 . Processor . | . . . Hackware . | . . . Protection 1 | . . 1 Artifact . | . . . Weapon 10 | 2 2 6 Energy Gun . | . . . Energy Cannon . | . . . Ballistic Gun 7 | 2 2 3 Ballistic Cannon . | . . . Launcher 2 | . . 2 Special Weapon . | . . . Impact Weapon 1 | . . 1 Slashing Weapon . | . . . Piercing Weapon . | . . . Special Melee Weapon . | . . . Unidentified Prototypes . | . . . Parts Lost 8 | . 1 7 Power 1 | . 1 . Propulsion 3 | . . 3 Utility 1 | . . 1 Weapon 3 | . . 3 Highest Loss Streak 3 | . 1 3 To Critical Strikes . | . . . Average Backups 12 | 1 10 13 Power . | . . 1 Propulsion 1 | 1 2 1 Utility 3 | . 2 4 Weapon 5 | . 4 5 Tool/Special . | . . . Unused Backups 8 | . . 8 Power 1 | . . 1 Propulsion . | . . . Utility 4 | . . 4 Weapon 2 | . . 2 Tool/Special 1 | . . 1 Average Slot Usage (%) 97 | . 95 98 Engine 13 | . 10 14 Treads 21 | . 21 21 Wheel 5 | . 6 5 Device 13 | . 14 12 Storage 14 | . 14 14 Ballistic Gun 21 | . 27 19 Impact Weapon 6 | . . 8 Peak Build Rating 16 | 7 10 16 Average Rating 12 | 5 9 13 On Entrance 5 | . 7 10 Avg Prop Armor Cover (%) 9 | . . 9 Naked Turns . | . . . Heaviest Build 35 | 12 30 35 Greatest Support 40 | 20 40 40 Greatest Overweight (x) 3 | . 1 3 Average Overweight (x) . | . . . Largest Inventory Capacity 15 | 8 15 15 Average Capacity 14 | 7 14 15 Most Carried 15 | 4 13 15 Average Carried 13 | 1 10 14 Final Capacity 15 | 8 15 15 Final Carried 14 | 4 13 14 Class Distribution -------------------- 100% | Mutant Dominant Class ---------------- Mutant | -10/Materials Mutant | -10/Subcaves Resources | -11 -10 -10 ----------- Run | Yrd Mat Sub Matter Collected 1253 | 300 350 603 Remotely . | . . . Salvage Created 979 | 134 393 452 Parts 74 | 8 31 35 Haulers Intercepted . | . . . Recyclers Shooed 2 | . 2 . Parts Field Recycled . | . . . Retrieved Matter . | . . . Parts Self-Destructed 12 | . . 12 Prevented . | . . . Parts Restored . | . . . Kills | -11 -10 -10 ------- Run | Yrd Mat Sub Combat Hostiles Destroyed 24 | . 11 13 Guns 22 | . 10 12 AOE 2 | . 1 1 Classes Destroyed 8 | 2 5 1 Worker 1 | . 1 . Tunneler 3 | 3 . . Recycler 2 | 1 1 . Operator 1 | . 1 . Watcher 2 | . 2 . Swarmer 8 | . 5 3 Grunt 7 | . 6 1 Subdweller 9 | . . 9 Best Kill Streak 5 | 4 5 3 Combat Bots Only 3 | . 3 3 Max Kills in Single Turn 2 | 1 2 1 Gunslinging . | . . . Exploded 1 | . 1 1 Melee . | . . . Uniques/NPCs Destroyed . | . . . Combat | -11 -10 -10 -------- Run | Yrd Mat Sub Hostile Shots Fired 148 | . 56 92 Missed 43 | . 15 28 Hits 105 | . 41 64 Projectile 105 | . 41 64 Critical Strikes 1 | . . 1 Damage Taken 1555 | . 375 1180 Core 262 | . 39 223 Absorbed by Shields . | . . . Regen/Repaired (Parts) 94 | . 94 . Core Remaining (%) 100 | 100 . . Volleys Fired 94 | 7 35 52 Largest 2 | 2 2 2 Hottest 65 | 40 46 65 Shots Fired 183 | 14 70 99 Gun 179 | 14 70 95 Cannon . | . . . Launcher 4 | . . 4 Special . | . . . Kinetic 183 | 14 70 99 Thermal . | . . . Explosive . | . . . Electromagnetic . | . . . Robot Hit Streak 15 | 13 8 15 Robot Miss Streak 7 | . 7 3 Penetration Max . | . . . Secondary Targets . | . . . Shots Hit Robots 115 | 13 32 70 Core Hits 45 | 5 20 20 Critical Kills . | . . . Critical Parts Destroyed . | . . . Critical Strikes . | . . . Melee Attacks 36 | . . 36 Impact 36 | . . 36 Slashing . | . . . Piercing . | . . . Sneak Attacks . | . . . Combat Hostiles . | . . . Follow-up Attacks . | . . . Damage Inflicted 2019 | 141 686 1192 Guns 1605 | 141 509 955 Cannons . | . . . Explosions 406 | . 169 237 Melee . | . . . Ramming 8 | . 8 . Kinetic 1842 | 141 509 1192 Thermal 169 | . 169 . Explosive . | . . . Electromagnetic . | . . . Impact . | . . . Slashing . | . . . Piercing . | . . . Highest Corruption . | . . . Average Corruption . | . . . Corruption Purged . | . . . Corruption Blocked . | . . . Overload Shots . | . . . Overflow Damage . | . . . Projectiles . | . . . Explosions . | . . . Melee . | . . . Knockbacks . | . . . Impact . | . . . Kinetic . | . . . Secondary . | . . . Self-Inflicted Damage 48 | . . 48 Shots 1 | . . 1 Rammed 3 | . 3 . Targets Rammed 3 | . 3 . Kicked . | . . . Crushed . | . . . Highest Temperature 40 | . 40 . Average Temperature 17 | . 17 . Received Heat Transfer 381 | . 90 291 Siege Activations . | . . . Martial Activations . | . . . Shielding Activations . | . . . Robots Disrupted . | . . . Combat Hostiles . | . . . Robots Corrupted . | . . . Combat Hostiles . | . . . Parts Fried . | . . . Impact Corruptions . | . . . Robots Melted . | . . . Combat Hostiles . | . . . Parts Melted 1 | . . 1 Heat Transferred 100 | . 100 . Parts Sabotaged . | . . . Parts Stolen . | . . . Parts Stripped . | . . . Power Chain Reactions . | . . . Alert | -11 -10 -10 ------- Run | Yrd Mat Sub Maximum Alert Level 1 | . 1 . Low Security (%) 90 | 100 89 . Level 1 9 | . 10 . Level 2 . | . . . Level 3 . | . . . Level 4 . | . . . Level 5 . | . . . High Security . | . . . Max Security . | . . . Peak Influence 229 | 10 229 . Initial . | . . . Average 77 | 2 84 . Influence Increases 707 | 20 372 315 Destroy 0b10 Robot/C 300 | . 220 80 Destroy 0b10 Robot/NC 45 | 20 25 . Destroy Leader 64 | . 54 10 Successful Hack 9 | . 9 . Disable Machine 30 | . 30 . Destroy Structure 19 | . 19 . Lose Combat Pursuer 240 | . 15 225 Influence Decreases 674 | 20 236 418 Entered New Map 66 | . . 66 Time Decay 528 | 20 226 282 Lost Part 80 | . 10 70 Squads Dispatched 4 | . 4 . Investigation . | . . . Extermination . | . . . Reinforcement 4 | . 4 . Assault . | . . . Garrison . | . . . Intercept . | . . . Searches Triggered . | . . . Construction Impeded . | . . . Haulers Reinforced . | . . . Active Scanning Responses . | . . . Cargo Convoy Interrupts . | . . . Stealth | -11 -10 -10 --------- Run | Yrd Mat Sub Distress Signals 1 | . 1 . Communications Jammed . | . . . Distress Signals . | . . . Times Spotted 47 | . 19 28 Peak Tracking Total 6 | . 5 6 Tactical Retreats 7 | . 1 6 Traps | -11 -10 -10 ------- Run | Yrd Mat Sub Traps Triggered . | . . . Indirectly . | . . . Trap Hack Attempts . | . . . Triggered . | . . . Disarmed . | . . . Reprogrammed . | . . . Reused 2 | . . 2 Traps Extracted . | . . . Installed 2 | . . 2 Triggered 1 | . . 1 Most Traps Carried 2 | . . 2 Machines | -11 -10 -10 ---------- Run | Yrd Mat Sub Machines Disabled 3 | . 2 1 Max in Single Turn 2 | . 2 1 Machines Repaired . | . . . Machines Dismantled . | . . . Machines Sabotaged . | . . . Overloaded Fab Kills . | . . . Hacking | -11 -10 -10 --------- Run | Yrd Mat Sub Machines Accessed 5 | . 3 2 Terminals 2 | . 2 . Fabricators . | . . . Repair Stations 1 | . 1 . Recycling Units . | . . . Scanalyzers . | . . . Garrison Access . | . . . Total Hacks 9 | . 4 5 Successful 9 | . 4 5 Failed . | . . . Catastrophic . | . . . Database Lockouts . | . . . Manual 1 | . 1 . Terminals 2 | . 2 . Fabricators . | . . . Repair Stations 2 | . 2 . Recycling Units . | . . . Scanalyzers . | . . . Garrison Access . | . . . Terminal Hacks 6 | . 1 5 Record 4 | . . 4 Locate Traps 1 | . 1 . Proto ID Catalog 1 | . . 1 Fabricator Hacks . | . . . Repair Station Hacks 2 | . 2 . Scan Component 1 | . 1 . Repair 1 | . 1 . Recycling Unit Hacks . | . . . Scanalyzer . | . . . Garrison Access Hacks . | . . . Unauthorized Hacks 1 | . 1 . Terminals 1 | . 1 . Assimilate 1 | . 1 . Fabricators . | . . . Repair Stations . | . . . Recycling Units . | . . . Scanalyzers . | . . . Garrison Access . | . . . Data Cores Recovered . | . . . Used . | . . . Hacking Detections 1 | . 1 . Full Trace Events . | . . . Feedback Events . | . . . Feedback Blocked . | . . . Robot Schematics Acquired . | . . . Robots Built . | . . . Authchips . | . . . Time . | . . . Total Robot Build Rating . | . . . Part Schematics Acquired . | . . . Parts Built . | . . . Authchips . | . . . Time . | . . . Total Part Build Rating . | . . . Part Studies Acquired . | . . . Parts Repaired 1 | . 1 . Time 32 | . 32 . Parts Recycled . | . . . Recycled Matter . | . . . Retrieved Matter . | . . . Retrieved Components . | . . . Parts Scanalyzed . | . . . Part Schematics Acquired . | . . . Parts Damaged . | . . . Bothacking | -11 -10 -10 ------------ Run | Yrd Mat Sub Used RIF Installer . | . . . Robots Hacked . | . . . Non-combat . | . . . Combat . | . . . Robot Hacks Applied . | . . . Relay Couplers Released . | . . . Fabnet Peak Effective % . | . . . Robots Rewired . | . . . Allies Hacked . | . . . Hacks Repelled . | . . . Allies | -11 -10 -10 -------- Run | Yrd Mat Sub Total Allies . | . . . Largest Group . | . . . Highest-Rated Group . | . . . Highest-Rated Ally . | . . . Total Orders . | . . . Ally Attacks . | . . . Total Damage . | . . . Kills . | . . . Allies Corrupted . | . . . Allies Melted . | . . . Intel | -11 -10 -10 ------- Run | Yrd Mat Sub Active Infowar (turns) 4343 | 19 926 3398 Terrain 2090 | . . 2090 Seismic 2253 | 19 926 1308 Robot Analysis Total . | . . . Derelict Logs Recovered 2 | . . 2 Drone Launches . | . . . Drone Recoveries . | . . . Exploration | -11 -10 -10 ------------- Run | Yrd Mat Sub Turns Passed 4729 | 91 926 3712 Spaces Moved 2175 | 67 504 1604 Core 4 | 4 . . Treads 1283 | 2 286 995 Legs . | . . . Wheels 888 | 61 218 609 Hover . | . . . Flight . | . . . Fastest Speed 50 | 50 80 95 Average Speed 136 | 80 128 140 Slowest Speed 240 | 160 160 240 Overloaded Moves . | . . . Propulsion Burnouts . | . . . Robots Hopped . | . . . Potential Cave-ins . | . . . Cave-ins Triggered . | . . . Exploration Rate (%) 59 | 3 93 81 Regions Visited 2 Branch Regions 1 Pre-discovered Areas . | . . . Known Exits Taken . | . . . Unknown Exits Taken 2 | 1 1 . Scrap Searched 4 | . . 4 Spaces Dug 9 | . . 9 Terrain Destroyed 68 | . 23 45 Melee 9 | . . 9 Projectile . | . . . AOE 59 | . 23 36 Terrain Rammed . | . . . Walls Destroyed . | . . . Machines Disabled . | . . . Actions | -11 -10 -10 --------- Run | Yrd Mat Sub Total 3720 | 87 724 2909 Wait 1334 | 2 168 1164 Move 2173 | 66 503 1604 Hop . | . . . Pick Up 23 | 4 6 13 Fast Attach 10 | 7 2 1 Attach 6 | . . 6 Detach . | . . . Swap 29 | 1 6 22 Drop 10 | . 1 9 Fire 94 | 7 35 52 Melee 36 | . . 36 Ram . | . . . Kick . | . . . Crush 3 | . 3 . Escape Stasis . | . . . Rewire . | . . . Trap 2 | . . 2 Miscellaneous . | . . . Route ------- -11/Scrapyard -10/Materials (discovered 5 exits: [*Mat x3] / [*Min] / *Sub) -10/Subcaves (discovered 3 exits: [*Mat x2] / [*Rec]) History --------- Turn | Location | Event 36 | -11/Scrapyard | Discovered new exit (range 15) 92 | -11/Scrapyard | Entered Materials 159 | -10/Materials | Discovered new exit (range 5) 260 | -10/Materials | Discovered new exit (range 5) 304 | -10/Materials | Build established: Mutant 482 | -10/Materials | Discovered new exit (range 13) 687 | -10/Materials | Discovered new exit (range 16) 810 | -10/Materials | Repaired Autogun 991 | -10/Materials | Discovered new exit (range 9) 1018 | -10/Materials | Entered Subcaves 1019 | -10/Subcaves | Approached by a straggling Scientist 1087 | -10/Subcaves | Visited 4L-MR0's lab 1103 | -10/Subcaves | Found Power Bank 1212 | -10/Subcaves | Learned Materials emergency access door positions 1239 | -10/Subcaves | Discovered new exit (range 14) 1475 | -10/Subcaves | Discovered new exit (range 8) 1489 | -10/Subcaves | Shifting Twisted Machinery released Sub. Shrapnel Launcher 1493 | -10/Subcaves | Shifting Twisted Machinery released Sub. Machine Gun 1772 | -10/Subcaves | Visited Clippyterm 1777 | -10/Subcaves | Learned Factory emergency access door positions 1777 | -10/Subcaves | Learned Factory stockpile data 1854 | -10/Subcaves | Shifting Twisted Machinery released Battle Rifle 1859 | -10/Subcaves | Shifting Twisted Machinery released Riot Gun 3756 | -10/Subcaves | A swath of the cavern ceiling suddenly collapsed 3871 | -10/Subcaves | Core integrity fell below 50% 3911 | -10/Subcaves | Lost 3 parts (2n1w) 4105 | -10/Subcaves | Ambushed by angry Subdweller bent on revenge 4263 | -10/Subcaves | A swath of the cavern ceiling suddenly collapsed 4485 | -10/Subcaves | Core integrity fell below 20% 4528 | -10/Subcaves | Shifting Twisted Machinery released Mak. Kinetic Plating 4533 | -10/Subcaves | Shifting Twisted Machinery released Sub. Laser 4577 | -10/Subcaves | Discovered new exit (range 14) 4730 | -10/Subcaves | Destroyed by 9A-8DU(R) with Subdweller Laser Last Messages --------------- 04484_ Z3-0WR(R) triggered Shrapnel Trap. 04484_ An expanding cloud of shrapnel blasts out in all directions. 04484_ Z3-0WR(R) destroyed. 04486_ Autogun destroyed. 04498_ HI-8UX(R) destroyed. 04502_ Acquired 32 matter. 04504_ Acquired 26 matter. 04516_ Acquired 18 matter. Mak. Kinetic Plating falls loose from the Twisted Machinery. Sub. Laser falls loose from the Twisted Machinery. 04534_ Acquired Mak. Kinetic Plating. 04548_ Dropped Shrapnel Trap. 04548_ Installed Shrapnel Trap. 04569_ G-47 Trooper destroyed. 04575_ Aluminum Leg fries itself beyond repair. 04575_ Acquired 39 matter. 04577_ EXIT=FOUND 04692_ Acquired 3 matter. 04711_ Acquired Mak. Thermal Plating. 04723_ KY-AWL(R) destroyed. Map ----- +----------------------------------------------------+ | ?????????????????????????????????????????????????? | | ?????????????????????????????????????????????????? | | ?????????????????????????????????????????????????? | | ?????????????????????????????????????????????????? | | ?????????????????????????????????????????????????? | | ?????????????????????????????????????????????????? | | ?????????????????????????????????????????????????? | | ?????????????????????????????????????????????????? | | ?????????????????????????????????????????????????? | | ?????????????????????????????????????????????????? | | ????????????????????????????????????????#####????? | | ??????????????????????#?????????"???????# ##???? | | ????????????????????##" ???????? ???????# ##### | | ????????????????????# """"???"""""?????## # # | | ????????????????????# """???""""#????## | | ????????????????????# ""#??## " #??????# | | ????????????????????# ""#?##""""#??????## | | ???????????????????## """###"""""#####??## | | ??????????#???????## ### """## ##### | | ??????????" ?????## ### " &% # " | | ??????????"" ????# # %= ## | | ???????????# #???### & ## ##"" | | ???????????# # ; ######### #### | | ???????????# ########????? #??# | | ???????????#; ## ;;; ###???? %#??? | | ???????????#; @ ;;; ##??? #??? | | ???????????# R* ;# [* = ##?? #??? | | ???????????# = ; ;# & ##? #??? | | ???????????# ;; ; * ###"""#??? | | ??????????# ;;;; "" ### #??? | | ??????????# ##### ##### #??# #??? | | ??????????# ### #???# #???## ##??##??? | | ??????????# ??# #?? #????# ##?????? | | ??????????## ???# ##?## ???## #?????# | | ???????????####???####???# ???# ##?#### | | ????????????????????????? ???### ### " | | ????????????????????????# ????## "" | | ????????????????????????## ####??##?# "## " | | ?????????????????????????## ????### ##### | | ??????????????????????????# ???#?# #" " | | ??????????????????????????# ????# " | | ??????????????????????????####??# " | | ?????????????????????????#??????## #### ## # #* | | ?????????????????????????????????## ##???######### | | ??????##???????????????????#??????###??????#??###" | | ??????#??????????????????????##???????#??????#### | | #?????#???#???????????##???????#????????##?##"# "# | | ???????#????????????????#???????????#?#???#?#"" " | | ?????????#?#???????????????#????#?#??###???##""## | | ???????#?#?????????????????????????### ###?##"#### | +----------------------------------------------------+ Best States ------------- Heat Dissipation 25 Energy Generation 15 Energy Capacity 200 Matter Stores 300 Matter Capacity 300 Sight Range 16 Terrain Scan Range 16 Terrain Scan Density 10 Armor Coverage 100 Evasion (%) 44 Recoil Reduction 2 Item Schematics ----------------- None Robot Schematics ------------------ None Fabricated ------------ Nothing Repaired ---------- Autogun | 18% | -10/Materials Studied --------- None Alien Tech Used ----------------- None Achievements -------------- None Challenges ------------ None Game ------ Seed CompactThermalDetonator Manual? 0 Play Time 00:21:58 Cumulative 510.4 hours Start 2026.09.18 @ 16:43:27 End 2026.09.18 @ 17:01:09 Sessions 1 Manual Loads 0 Difficulty Rogue Special Mode None Game No. 379 Rogue 379 Adventurer 0 Explorer 0 Win Type - Total 11 Types 4/0/5/2/0/0/0/0/0/0 Lore% 66 Gallery% 74 Achievement% 62 Wizard Run 0 Options --------- Layout 2 ASCII 0 Keyboard 1 Movement Vi Keybinds 0 Fullscreen 2 Font 32/Smallcaps Map View 77x44 Zoom Use 0% Tactical HUD 1 Map Filters NONE Filters NONE Steam 1 RUN: 0c8119e4-8ce4-4139-be18-d2f4bfc03761